bitfinex/quotes_ETHUSD_20250526
["timestamp","ask_amount","ask_price","bid_price","bid_amount"]
[1748278396958,1.18008024,2542.2,2542.1,1.35173]
[1748278397125,1.18006126,2542.3,2542.1,1.35173]
[1748278397458,1.18006095,2542.3,2542.1,1.35173]
[1748278397759,1.18008024,2542.2,2542.1,1.35173]
[1748278398944,1.18005929,2542.3,2542.1,1.35173]
[1748278398945,1.18005527,2542.3,2542.1,1.35173]
[1748278399149,1.18005527,2542.3,2542.2,0.935173]
[1748278401620,1.18000403,2542.4,2542.2,0.935173]
[1748278401875,0.7871,2542.7,2542.2,0.935173]
[1748278402034,1.18003382,2542.3,2542.2,0.935173]
[1748278404356,1.18001191,2542.4,2542.2,0.935173]
[1748278404568,1.18001191,2542.4,2542.3,0.2286903]
[1748278406472,1.18001191,2542.4,2542.3,12.9486903]
[1748278406678,1.18001191,2542.4,2542.3,12.72]
[1748278412461,1.18001191,2542.4,2542.3,8.0]
[1748278418036,2.08348035,2542.9,2542.5,3.93310828]
[1748278418196,1.17984819,2542.7,2542.6,8.03932695]
[1748278418391,1.17984819,2542.7,2542.6,10.02132898]
[1748278418692,1.17984819,2542.7,2542.2,9.82913589]
[1748278418693,1.18003382,2542.3,2542.2,9.40338196]
[1748278419118,1.18003382,2542.3,2542.2,1.40338196]
[1748278419734,1.18003382,2542.3,2542.2,0.935173]
[1748278420423,1.18003382,2542.3,2542.2,8.935173]
[1748278421934,1.18000595,2542.4,2542.2,8.935173]
[1748278422156,1.18000595,2542.4,2542.3,1.31091359]
[1748278422520,1.17996879,2542.5,2542.3,1.31091359]
[1748278422959,1.1799155,2542.6,2542.3,5.48487648]
[1748278422960,1.17992016,2542.6,2542.3,5.48487648]
[1748278423166,1.17996073,2542.5,2542.3,5.48487648]
[1748278424163,1.17996073,2542.5,2542.3,10.20487648]
[1748278424361,1.17992159,2542.6,2542.4,9.96082584]
[1748278424561,1.17987853,2542.7,2542.5,4.21329003]
[1748278424761,1.17989459,2542.6,2542.5,4.17396289]
[1748278424936,1.17986797,2542.7,2542.5,12.17396289]
[1748278425138,1.17986797,2542.7,2542.6,2.27857887]
[1748278425334,1.17989459,2542.6,2542.4,7.1490348]
[1748278425522,2.002741,2542.5,2542.4,5.18820896]
[1748278425725,2.002741,2542.5,2542.4,0.46820896]
[1748278426259,1.18008024,2542.2,2542.1,0.46820896]
[1748278430338,1.18012666,2542.1,2542.0,8.46820896]
[1748278430576,1.18012666,2542.1,2542.0,10.73602409]
[1748278430751,1.18012518,2542.2,2542.0,10.73602409]
[1748278431071,1.18012666,2542.1,2542.0,10.73602409]
[1748278432475,1.18012666,2542.1,2542.0,10.26781513]
[1748278433433,1.17998741,2542.4,2542.0,10.26781513]
[1748278433773,0.8228,2542.5,2542.0,10.26781513]
[1748278433774,1.1800992,2542.2,2542.1,1.9921478]
[1748278434773,1.1800992,2542.2,2542.1,2.46340169]
[1748278435776,1.1800992,2542.2,2542.1,0.47125389]
[1748278435934,1.18012666,2542.1,2542.0,8.47125389]
[1748278436640,1.18008071,2542.2,2542.0,8.47125389]
[1748278437193,1.18008071,2542.2,2542.0,8.0]
[1748278437393,1.18008071,2542.2,2542.0,10.22099424]
[1748278437562,1.18012666,2542.1,2542.0,10.22099424]
[1748278437891,1.18004089,2542.3,2542.0,10.22099424]
[1748278438564,1.18008024,2542.2,2542.0,10.22099424]
[1748278438895,0.35983942,2542.8,2542.1,13.09052578]
[1748278439095,1.17989674,2542.6,2542.5,4.17396289]
[1748278439454,1.17998741,2542.4,2542.3,8.0]
[1748278440979,1.17998741,2542.4,2542.3,8.47112877]
[1748278441789,1.17996739,2542.5,2542.3,8.47112877]
[1748278442427,1.17998741,2542.4,2542.3,8.47112877]
[1748278442816,1.17990704,2542.6,2542.3,10.07469696]
[1748278443016,1.1799869,2542.5,2542.3,10.07469696]
[1748278443404,1.17998741,2542.4,2542.3,10.07469696]
[1748278444296,1.17998741,2542.4,2542.3,8.47112877]
[1748278445024,0.1,2542.9,2542.3,8.47112877]
[1748278445326,1.17998741,2542.4,2542.3,8.47112877]
[1748278445726,1.17998741,2542.4,2542.3,0.47112877]
[1748278446097,1.18003382,2542.3,2542.2,0.47112877]
[1748278447995,1.18003382,2542.3,2542.1,8.0]
[1748278448195,1.18008024,2542.2,2542.1,9.81273917]
[1748278449323,0.8012,2542.7,2542.1,8.0]
[1748278449992,0.8012,2542.7,2542.2,12.17396289]
[1748278450192,1.18002169,2542.4,2542.2,4.17396289]
[1748278450443,0.8012,2542.7,2542.2,4.17396289]
[1748278450633,1.18003382,2542.3,2542.2,4.17396289]
[1748278450833,1.18003382,2542.3,2542.2,5.91047206]
[1748278452534,0.8012,2542.7,2542.2,5.91047206]
[1748278452834,1.18001955,2542.4,2542.2,5.94980302]
[1748278453012,1.18003382,2542.3,2542.2,5.91047206]
[1748278453329,1.18000073,2542.4,2542.2,5.91047206]
[1748278453493,1.17998741,2542.4,2542.3,1.43816008]
[1748278456335,1.18003382,2542.3,2542.2,5.91047206]
[1748278459601,1.18003382,2542.3,2542.2,10.63047206]
[1748278459811,1.18003382,2542.3,2542.2,18.63047206]
[1748278462437,1.17999209,2542.4,2542.2,19.38417206]
[1748278462767,1.18003382,2542.3,2542.2,19.38417206]
[1748278463976,1.18003382,2542.3,2542.2,19.85530083]
[1748278464141,1.17981408,2542.8,2542.3,8.0]
[1748278464641,1.17998741,2542.4,2542.3,8.0]
[1748278464838,1.17998741,2542.4,2542.3,9.98553008]
[1748278465660,1.17994374,2542.5,2542.3,9.98553008]
[1748278465977,1.17998741,2542.4,2542.3,9.98553008]
[1748278466278,1.17988495,2542.7,2542.3,9.98553008]
[1748278466589,1.17984819,2542.7,2542.6,4.17396289]
[1748278466877,1.17991239,2542.6,2542.5,8.0]
[1748278467276,1.17991239,2542.6,2542.5,8.99855301]
[1748278470416,1.17991239,2542.6,2542.5,8.0]
[1748278470646,1.936241,2542.5,2542.4,5.19112877]
[1748278471695,1.936241,2542.5,2542.4,4.72]
[1748278472192,2.29683302,2542.5,2542.4,4.72]
[1748278473391,1.936241,2542.5,2542.4,4.72]
[1748278474492,1.18004339,2542.3,2542.1,8.0]
[1748278474693,1.18003382,2542.3,2542.2,1.73650917]
[1748278475437,1.18003382,2542.3,2542.1,8.0]
[1748278476421,1.18000722,2542.4,2542.1,8.0]
[1748278476422,1.18008024,2542.2,2542.1,8.0]
[1748278476928,1.17999758,2542.4,2542.1,8.0]
[1748278476929,1.18001027,2542.4,2542.1,8.0]
[1748278477119,1.17994934,2542.5,2542.2,4.17396289]
[1748278477917,1.17997907,2542.5,2542.2,4.17396289]
[1748278478134,1.18003382,2542.3,2542.2,12.17396289]
[1748278478997,1.18003382,2542.3,2542.2,8.0]
[1748278480332,1.17999655,2542.4,2542.2,12.17396289]
[1748278480535,1.17999655,2542.4,2542.3,8.0]
[1748278480734,1.17999655,2542.4,2542.3,9.03364213]
[1748278482404,1.17996176,2542.5,2542.3,1.03364213]
[1748278482734,1.17998741,2542.4,2542.3,1.03364213]
[1748278484535,0.763,2542.7,2542.3,1.03364213]
[1748278484745,1.17996115,2542.5,2542.3,9.03364213]
[1748278485343,1.17985011,2542.7,2542.4,5.3720101]
[1748278485639,1.1798724,2542.7,2542.5,8.0]
[1748278485944,1.17989459,2542.6,2542.5,8.0]
[1748278490463,1.17985,2542.7,2542.5,8.0]
[1748278490464,1.17987238,2542.7,2542.5,8.0]
[1748278490764,0.8604,2542.9,2542.5,8.0]
[1748278490765,0.1,2542.9,2542.6,4.17396289]
[1748278490961,1.17984717,2542.8,2542.6,8.89396289]
[1748278491125,1.17984717,2542.8,2542.6,10.83183678]
[1748278491525,1.1798204,2542.8,2542.6,10.83183678]
[1748278491830,1.27977515,2542.9,2542.6,10.83183678]
[1748278491831,1.17984819,2542.7,2542.6,10.83183678]
[1748278493765,1.17984819,2542.7,2542.6,4.72]
[1748278495162,1.17989459,2542.6,2542.4,8.47112877]
[1748278495460,0.1,2542.9,2542.4,8.47112877]
[1748278495670,1.179941,2542.5,2542.4,8.47112877]
[1748278496034,1.179941,2542.5,2542.4,8.0]
[1748278498865,1.179941,2542.5,2542.3,5.19112877]
[1748278498866,1.17998741,2542.4,2542.3,5.19112877]
[1748278499054,1.41597122,2542.4,2542.3,13.19112877]
[1748278499247,1.41597122,2542.4,2542.3,8.47112877]
[1748278500278,1.17998741,2542.4,2542.3,8.47112877]
[1748278500733,1.17998741,2542.4,2542.3,8.0]
[1748278502466,1.18012666,2542.1,2542.0,0.47112877]
[1748278503070,1.18005705,2542.3,2542.0,4.64509166]
[1748278503381,1.18010263,2542.2,2542.0,4.64509166]
[1748278503569,1.18010263,2542.2,2542.0,4.17396289]
[1748278503771,1.18017309,2542.0,2541.9,0.47112877]
[1748278504982,0.7591,2542.2,2541.7,0.47112877]
[1748278504983,1.18026595,2541.8,2541.7,0.47112877]
[1748278505856,1.18026595,2541.8,2541.7,8.47112877]
[1748278506067,1.18026595,2541.8,2541.7,8.0]
[1748278507179,1.18026595,2541.8,2541.6,0.47112877]
[1748278507482,1.18031238,2541.7,2541.6,0.47112877]
[1748278508892,2.17191547,2541.8,2541.4,8.0]
[1748278508893,1.18040527,2541.5,2541.4,8.0]
[1748278511391,1.18049817,2541.3,2541.2,16.89396289]
[1748278511555,1.1804851,2541.4,2541.3,8.0]
[1748278511756,1.1804851,2541.4,2541.3,0.48595692]
[1748278512407,1.9684419,2542.1,2541.4,0.8152]
[1748278512569,1.18031238,2541.7,2541.6,4.17396289]
[1748278514056,4.7203,2542.1,2541.6,4.17396289]
[1748278514256,1.18036174,2541.6,2541.4,5.5352]
[1748278514593,1.18040527,2541.5,2541.4,4.72]
[1748278514770,1.18049817,2541.3,2541.2,17.36509166]
[1748278515156,1.18049817,2541.3,2541.2,16.89396289]
[1748278516260,1.18049817,2541.3,2541.2,12.17396289]
[1748278517188,1.18049817,2541.3,2540.9,5.5352]
[1748278517189,1.18063754,2541.0,2540.9,4.72]
[1748278517499,1.18063754,2541.0,2540.9,12.72]
[1748278517999,1.18060937,2541.1,2540.9,16.89396289]
[1748278518171,1.18063754,2541.0,2540.9,16.89396289]
[1748278518496,1.18063754,2541.0,2540.9,12.72]
[1748278518702,1.18063754,2541.0,2540.9,4.72]
[1748278520198,1.18063754,2541.0,2540.9,4.17396289]
[1748278520502,1.18062887,2541.1,2540.9,5.39135918]
[1748278520667,1.18062887,2541.1,2541.0,8.0]
[1748278521203,1.18073047,2540.8,2540.7,8.0]
[1748278521368,0.8304,2541.3,2540.7,8.0]
[1748278521563,1.18054462,2541.2,2541.1,4.17396289]
[1748278522201,1.18054462,2541.2,2541.1,12.17396289]
[1748278522713,1.18052551,2541.3,2541.1,12.17396289]
[1748278522869,1.18054462,2541.2,2541.1,12.17396289]
[1748278523871,1.18051654,2541.3,2541.1,12.17396289]
[1748278524067,1.18054462,2541.2,2541.1,13.46820918]
[1748278526617,1.18054462,2541.2,2540.8,4.72]
[1748278526618,1.180684,2540.9,2540.8,4.72]
[1748278526775,1.180684,2540.9,2540.8,12.72]
[1748278526980,1.180684,2540.9,2540.8,8.0]
[1748278529945,1.18064781,2541.0,2540.8,8.0]
[1748278529946,3.932,2541.3,2540.8,8.0]
[1748278530075,1.18067148,2541.0,2540.9,4.17396289]
[1748278531437,1.18067148,2541.0,2540.8,8.0]
[1748278531438,1.180684,2540.9,2540.8,8.0]
[1748278531937,1.18051747,2541.3,2541.0,0.7979]
[1748278532122,3.933,2541.5,2541.1,4.17396289]
[1748278532323,1.18049817,2541.3,2541.2,8.0]
[1748278532632,1.18040182,2541.6,2541.2,8.0]
[1748278532793,1.18024704,2541.9,2541.5,8.0]
[1748278532995,0.8323,2542.0,2541.5,8.0]
[1748278533195,1.18033129,2541.7,2541.5,8.0]
[1748278533647,1.18028185,2541.8,2541.6,4.17396289]
[1748278533932,1.18014635,2542.1,2541.7,8.0]
[1748278534111,1.18022748,2541.9,2541.7,9.21739629]
[1748278534834,1.1802047,2542.0,2541.7,9.21739629]
[1748278535042,1.18024022,2541.9,2541.7,9.21739629]
[1748278535741,1.18019355,2542.0,2541.7,9.21739629]
[1748278535914,1.18024262,2541.9,2541.7,9.21739629]
[1748278536213,1.18024262,2541.9,2541.8,1.73243592]
[1748278537625,1.18018582,2542.0,2541.9,8.0]
[1748278539195,1.18014634,2542.1,2541.9,8.0]
[1748278539396,1.17999986,2542.4,2542.1,8.0]
[1748278540026,1.18008024,2542.2,2542.1,8.0]
[1748278540227,1.18008024,2542.2,2542.1,9.21739629]
[1748278541633,1.18021952,2541.9,2541.8,10.20356469]
[1748278541800,1.18021952,2541.9,2541.8,9.73243592]
[1748278543659,1.18021952,2541.9,2541.8,1.73243592]
[1748278543803,1.18021952,2541.9,2541.8,5.66443592]
[1748278544231,1.18019872,2542.0,2541.8,5.66443592]
[1748278544403,1.18021952,2541.9,2541.8,5.66443592]
[1748278544805,1.18014406,2542.1,2541.8,5.66443592]
[1748278544806,0.7933,2542.4,2541.8,9.83839881]
[1748278545071,1.97315893,2542.7,2542.1,8.0]
[1748278545342,1.18006107,2542.3,2542.1,8.0]
[1748278546040,1.18008024,2542.2,2542.1,8.0]
[1748278546243,5.90515893,2542.7,2542.1,9.29476629]
[1748278546244,0.7933,2542.7,2542.1,9.29476629]
[1748278546462,1.18008024,2542.2,2542.1,9.29476629]
[1748278547012,0.8907,2542.9,2542.1,9.29476629]
[1748278547249,1.17998717,2542.5,2542.3,12.17396289]
[1748278547543,1.17998741,2542.4,2542.3,12.17396289]
[1748278547844,1.17998741,2542.4,2542.3,8.0]
[1748278549651,0.8907,2542.9,2542.3,4.17396289]
[1748278549822,0.8907,2542.9,2542.2,4.72]
[1748278549823,1.17983612,2542.8,2542.5,4.17396289]
[1748278550024,1.17989459,2542.6,2542.5,4.17396289]
[1748278550227,1.17998741,2542.4,2542.3,4.72]
[1748278551046,1.97855116,2542.5,2542.4,8.0]
[1748278551047,1.17996101,2542.5,2542.4,8.0]
[1748278554354,1.17996101,2542.5,2542.2,16.89396289]
[1748278555727,1.17998898,2542.4,2542.2,16.89396289]
[1748278557964,1.17995441,2542.5,2542.2,16.89396289]
[1748278558147,1.17995441,2542.5,2542.3,2.08259629]
[1748278558973,1.17998741,2542.4,2542.3,2.08259629]
[1748278560167,1.17995974,2542.5,2542.3,2.08259629]
[1748278560319,1.17995974,2542.5,2542.4,8.0]
[1748278561853,1.98865974,2542.5,2542.4,8.0]
[1748278563858,1.17998741,2542.4,2542.3,4.72]
[1748278565366,1.17998741,2542.4,2542.3,5.64881815]
[1748278566257,1.17998741,2542.4,2542.3,8.92881815]
[1748278566879,1.17992451,2542.6,2542.3,8.92881815]
[1748278567025,1.17994277,2542.5,2542.4,4.17396289]
[1748278567226,1.17994277,2542.5,2542.4,6.03287099]
[1748278570825,1.17998741,2542.4,2542.3,0.47112877]
[1748278572004,1.17998741,2542.4,2542.2,12.72]
[1748278572005,1.18003382,2542.3,2542.2,12.72]
[1748278572208,1.18003382,2542.3,2542.2,8.0]
[1748278573202,1.18003382,2542.3,2542.0,5.19112877]
[1748278573203,1.18012666,2542.1,2542.0,5.19112877]
[1748278573503,1.18012666,2542.1,2542.0,4.72]
[1748278574206,1.18012666,2542.1,2542.0,12.72]
[1748278574883,1.18010092,2542.2,2542.0,12.72]
[1748278575093,1.18006573,2542.3,2542.2,8.0]
[1748278575465,0.36010042,2542.8,2542.2,8.8298]
[1748278575466,1.13480042,2542.8,2542.2,8.8298]
[1748278575669,1.17996251,2542.5,2542.4,8.0]
[1748278576680,1.17992245,2542.6,2542.4,8.0]
[1748278576884,1.179941,2542.5,2542.4,8.0]
[1748278577096,1.179941,2542.5,2542.4,9.30037629]
[1748278583018,1.179941,2542.5,2542.4,8.0]
[1748278584028,1.17998741,2542.4,2542.3,0.47112877]
[1748278584434,1.17998741,2542.4,2542.2,13.19112877]
[1748278584590,1.18003382,2542.3,2542.2,13.19112877]
[1748278584791,1.18003382,2542.3,2542.2,5.19112877]
[1748278585125,1.96783382,2542.3,2542.2,5.19112877]
[1748278585716,1.96783382,2542.3,2542.2,4.72]
[1748278585918,1.18017309,2542.0,2541.9,0.47112877]
[1748278586649,1.18017309,2542.0,2541.7,0.62527949]
[1748278586650,1.18031238,2541.7,2541.6,13.19112877]
[1748278587658,1.18031238,2541.7,2541.6,12.72]
[1748278589036,1.18035882,2541.6,2541.5,0.47112877]
[1748278590904,1.18040527,2541.5,2541.4,8.0]
[1748278591843,1.18045171,2541.4,2541.2,0.47112877]
[1748278592066,1.18049817,2541.3,2541.2,0.47112877]
[1748278592217,1.18049817,2541.3,2541.2,8.47112877]
[1748278593137,1.18049817,2541.3,2541.2,0.47112877]
[1748278593357,1.49377316,2541.3,2541.2,0.47112877]
[1748278593565,1.18045171,2541.4,2541.0,0.47112877]
[1748278593566,1.18059108,2541.1,2541.0,0.47112877]
[1748278593851,1.18059108,2541.1,2541.0,4.64509166]
[1748278594453,1.18048106,2541.4,2541.0,5.42149166]
[1748278594752,1.18048106,2541.4,2541.3,12.17396289]
[1748278596151,1.1803517,2541.7,2541.3,4.17396289]
[1748278596456,1.1803517,2541.7,2541.6,12.17396289]
[1748278598511,0.7929,2542.1,2541.6,12.17396289]
[1748278598848,1.18024246,2541.9,2541.8,12.17396289]
[1748278599573,1.18024246,2541.9,2541.8,8.0]
[1748278601060,1.18024246,2541.9,2541.8,12.17396289]
[1748278601272,1.18019231,2542.0,2541.8,13.94259918]
[1748278602467,1.18013157,2542.1,2541.8,13.94259918]
[1748278602468,1.18021952,2541.9,2541.8,13.94259918]
[1748278602764,1.18016338,2542.1,2541.8,5.94259918]
[1748278602970,1.18016338,2542.1,2542.0,12.17396289]
[1748278603471,1.1801016,2542.2,2542.1,8.0]
[1748278604266,0.8299,2542.5,2542.1,9.01240877]
[1748278604468,1.1800704,2542.3,2542.1,9.01240877]
[1748278604762,1.18003382,2542.3,2542.1,1.01240877]
[1748278605127,1.18008024,2542.2,2542.1,1.01240877]
[1748278605326,0.8277,2542.7,2542.1,1.01240877]
[1748278605530,0.8277,2542.7,2542.4,4.17396289]
[1748278605786,1.17998741,2542.4,2542.3,12.72]
[1748278609958,1.17991195,2542.6,2542.3,12.72]
[1748278610162,1.17996537,2542.5,2542.4,4.17396289]
[1748278610778,1.17998741,2542.4,2542.3,12.72]
[1748278611448,1.17998741,2542.4,2542.3,14.88469629]
[1748278611648,4.7854,2542.9,2542.3,14.88469629]
[1748278611863,1.179941,2542.5,2542.4,4.17396289]
[1748278612881,1.17987745,2542.7,2542.4,4.17396289]
[1748278612882,1.17991505,2542.6,2542.4,4.17396289]
[1748278613089,1.17991505,2542.6,2542.4,8.89396289]
[1748278613291,1.17991505,2542.6,2542.5,1.90586592]
[1748278613597,1.17991505,2542.6,2542.5,9.90586592]
[1748278617191,1.17987453,2542.7,2542.5,9.90586592]
[1748278617363,1.27977919,2542.9,2542.7,8.0]
[1748278617556,1.27977919,2542.9,2542.8,1.30172897]
[1748278619334,1.17989459,2542.6,2542.5,9.90586592]
[1748278619786,1.17998741,2542.4,2542.3,1.27512877]
[1748278619986,1.18002319,2542.4,2542.2,8.47112877]
[1748278620352,1.18002319,2542.4,2542.3,4.17396289]
[1748278620489,1.18002319,2542.4,2542.3,6.38397206]
[1748278620690,1.17995312,2542.5,2542.4,8.0]
[1748278623322,0.1,2542.9,2542.8,8.8312]
[1748278623627,1.17938905,2543.7,2542.9,12.76368199]
[1748278623628,1.17939724,2543.7,2542.9,12.76368199]
[1748278623828,1.17943072,2543.6,2543.5,4.17396289]
[1748278624042,1.17941015,2543.7,2543.5,4.17396289]
[1748278624232,1.17943072,2543.6,2543.5,4.17396289]
[1748278625345,1.17943072,2543.6,2543.5,12.17396289]
[1748278625544,1.17943072,2543.6,2543.5,5.47447918]
[1748278625844,1.17943072,2543.6,2543.5,4.17396289]
[1748278626044,1.17938357,2543.8,2543.5,4.17396289]
[1748278626257,1.17943072,2543.6,2543.5,4.17396289]
[1748278626955,0.1,2543.9,2543.6,8.8312]
[1748278627135,0.1,2543.9,2543.7,4.21326979]
[1748278627340,0.1,2543.9,2543.8,13.18365364]
[1748278628045,0.09808045,2543.9,2543.8,13.18365364]
[1748278628360,0.09808045,2543.9,2543.8,9.25252698]
[1748278628535,0.09808045,2543.9,2543.8,13.18365364]
[1748278629435,0.09808045,2543.9,2543.8,13.57007334]
[1748278630372,0.09808045,2543.9,2543.8,13.76608756]
[1748278630937,0.09808045,2543.9,2543.8,13.71688756]
[1748278631469,1.17892089,2544.7,2544.0,11.93074988]
[1748278631674,0.8169,2544.8,2544.4,8.0]
[1748278631675,1.17901372,2544.5,2544.4,8.0]
[1748278632056,1.17912691,2544.3,2544.2,8.0]
[1748278632439,1.17902166,2544.5,2544.2,8.0]
[1748278632634,1.17906382,2544.4,2544.2,8.0]
[1748278634991,5.35293465,2544.6,2544.1,3.929]
[1748278635191,1.17912869,2544.3,2544.1,11.929]
[1748278636763,1.17915258,2544.2,2544.1,11.929]
[1748278637091,1.1791246,2544.3,2544.1,11.929]
[1748278637788,1.1791246,2544.3,2544.1,8.0]
[1748278638095,1.17913188,2544.3,2544.1,11.929]
[1748278638453,1.17913188,2544.3,2544.1,8.0]
[1748278640290,1.17915258,2544.2,2544.1,8.0]
[1748278640697,1.17912712,2544.3,2544.1,9.6727844]
[1748278641062,1.17908612,2544.4,2544.1,9.6727844]
[1748278641281,1.17904578,2544.5,2544.1,9.6727844]
[1748278641628,1.1790614,2544.4,2544.1,9.6727844]
[1748278641922,1.17906113,2544.4,2544.1,9.6727844]
[1748278642363,1.17910966,2544.3,2544.1,9.6727844]
[1748278642863,1.17908087,2544.4,2544.1,9.6727844]
[1748278643065,1.17908087,2544.4,2544.3,8.0]
[1748278649211,1.17908087,2544.4,2544.3,12.72]
[1748278649722,5.34747582,2544.4,2544.3,4.72]
[1748278650030,1.17933799,2543.8,2543.7,0.46903997]
[1748278650169,6.12003294,2543.8,2543.7,0.46903997]
[1748278651304,1.1795219,2543.5,2543.2,0.7789]
[1748278651505,1.17950812,2543.5,2543.3,8.0]
[1748278651667,1.17950812,2543.5,2543.3,9.27069]
[1748278652000,1.17952347,2543.4,2543.3,1.27069]
[1748278652197,1.17952347,2543.4,2543.3,8.0]
[1748278652374,1.17957813,2543.3,2543.2,3.928]
[1748278652573,1.17957813,2543.3,2543.1,8.39418678]
[1748278652805,1.17961203,2543.3,2543.1,8.39418678]
[1748278652993,1.17961203,2543.3,2543.1,11.928]
[1748278653191,1.17961203,2543.3,2543.1,15.26906779]
[1748278653402,1.17954201,2543.4,2543.1,15.26906779]
[1748278654909,1.17957774,2543.3,2543.1,11.34106779]
[1748278655115,1.17956985,2543.3,2543.1,8.0]
[1748278657015,1.17956985,2543.3,2543.1,12.72]
[1748278657819,5.34793671,2543.4,2543.1,12.72]
[1748278658790,1.17957753,2543.3,2543.1,12.72]
[1748278659117,1.17961623,2543.2,2543.1,12.72]
[1748278659521,1.17958468,2543.3,2543.1,12.72]
[1748278659726,5.34794592,2543.4,2543.1,12.72]
[1748278660423,5.34794592,2543.4,2543.1,15.06632147]
[1748278660802,5.34794592,2543.4,2543.1,10.34632147]
[1748278662252,1.17957776,2543.3,2543.1,8.0]
[1748278662394,1.17961623,2543.2,2543.1,8.0]
[1748278662599,5.34793858,2543.4,2543.1,8.0]
[1748278662600,1.17958755,2543.3,2543.1,8.0]
[1748278662801,5.34793685,2543.4,2543.1,8.0]
[1748278663026,4.16839495,2543.4,2543.1,8.0]
[1748278663300,5.34793802,2543.4,2543.1,8.0]
[1748278663701,1.17959546,2543.3,2543.1,8.0]
[1748278665063,1.17975539,2542.9,2542.8,4.72]
[1748278665356,5.34815034,2542.9,2542.8,4.72]
[1748278665532,5.34808266,2543.1,2542.9,8.0]
[1748278665719,1.17973583,2543.0,2542.9,8.0]
[1748278667239,5.34808185,2543.1,2542.9,8.0]
[1748278667401,1.96794379,2543.2,2542.9,8.0]
[1748278667600,1.17969114,2543.1,2542.9,8.0]
[1748278668112,1.179709,2543.0,2542.9,8.0]
[1748278668307,1.17967668,2543.1,2542.9,8.0]
[1748278668535,1.179709,2543.0,2542.9,8.0]
[1748278668897,0.7883,2543.2,2542.9,8.0]
[1748278669095,1.179709,2543.0,2542.9,8.0]
[1748278669844,1.17968852,2543.1,2542.8,8.0]
[1748278670759,1.17973653,2543.0,2542.8,8.0]
[1748278670926,1.17971195,2543.0,2542.8,8.0]
[1748278671746,1.17973145,2543.0,2542.8,8.0]
[1748278673023,1.17975539,2542.9,2542.8,8.0]
[1748278674728,1.17973717,2543.0,2542.8,8.0]
[1748278675336,1.17992131,2542.6,2542.4,3.93]
[1748278675536,1.17987635,2542.7,2542.4,4.72]
[1748278675751,1.17989377,2542.7,2542.4,6.139724]
[1748278675954,1.17990872,2542.6,2542.4,6.139724]
[1748278676362,1.179941,2542.5,2542.4,6.139724]
[1748278676862,1.179941,2542.5,2542.4,4.72]
[1748278678457,1.992741,2542.5,2542.4,4.72]
[1748278678629,1.18003382,2542.3,2542.2,9.036]
[1748278678829,1.18000946,2542.4,2542.2,17.036]
[1748278679367,1.18000946,2542.4,2542.2,12.72]
[1748278679566,1.18000946,2542.4,2542.2,14.56552962]
[1748278680070,0.8128,2543.4,2542.3,12.7048]
[1748278680270,1.99232494,2543.4,2542.5,3.93307458]
[1748278680432,1.17974983,2543.0,2542.7,8.0]
[1748278680633,4.98533898,2543.4,2542.7,8.0]
[1748278680866,1.17979214,2542.9,2542.7,8.0]
[1748278681169,1.17986145,2542.7,2542.4,0.7748]
[1748278681352,1.17989922,2542.6,2542.4,0.7748]
[1748278681672,1.17989922,2542.6,2542.5,0.46903997]
[1748278683258,1.17996257,2542.5,2542.2,8.0]
[1748278683435,1.17996257,2542.5,2542.3,1.288604]
[1748278683770,1.1799108,2542.6,2542.3,1.288604]
[1748278684155,1.9926692,2542.7,2542.3,1.288604]
[1748278684156,1.99267163,2542.7,2542.3,1.288604]
[1748278684348,1.17987163,2542.7,2542.3,1.288604]
[1748278684533,1.17990124,2542.6,2542.3,1.288604]
[1748278684734,1.17990124,2542.6,2542.4,9.32221975]
[1748278685436,1.179941,2542.5,2542.4,9.32221975]
[1748278685766,1.179941,2542.5,2542.4,8.0]
[1748278686977,1.17991283,2542.6,2542.4,8.0]
[1748278688149,1.179941,2542.5,2542.4,8.0]
[1748278690571,1.18003382,2542.3,2542.2,0.46903997]
[1748278690733,5.78375005,2542.3,2542.2,0.46903997]
[1748278691331,1.61121107,2542.3,2542.2,0.46903997]
[1748278691746,6.55555005,2542.3,2542.2,0.46903997]
[1748278691956,1.18008024,2542.2,2542.1,0.1]
[1748278696196,1.1798689,2542.7,2542.3,3.93341859]
[1748278696398,0.803,2542.8,2542.3,8.48423186]
[1748278696554,1.1799746,2542.5,2542.3,0.48423186]
[1748278697566,0.803,2542.8,2542.3,0.48423186]
[1748278697567,1.17991656,2542.6,2542.3,0.48423186]
[1748278697770,1.17987555,2542.7,2542.3,0.48423186]
[1748278698058,1.17991838,2542.6,2542.3,0.48423186]
[1748278698253,1.179941,2542.5,2542.3,0.48423186]
[1748278698503,1.17996955,2542.5,2542.2,9.27793997]
[1748278698694,5.11075866,2542.9,2542.6,0.8089]
[1748278698695,1.17975925,2542.9,2542.6,0.8089]
[1748278698994,1.17982266,2542.8,2542.6,0.8089]
[1748278699159,1.17984819,2542.7,2542.6,2.08289]
[1748278699558,1.17977527,2542.9,2542.6,2.08289]
[1748278699559,1.17982786,2542.8,2542.6,2.08289]
[1748278700180,1.17984819,2542.7,2542.6,2.08289]
[1748278700508,1.17984819,2542.7,2542.6,1.27399]
[1748278700720,1.17989865,2542.6,2542.4,9.27793997]
[1748278701413,1.17987647,2542.7,2542.4,9.27793997]
[1748278702282,1.17989578,2542.6,2542.4,1.27793997]
[1748278702682,1.17985474,2542.7,2542.4,1.27793997]
[1748278703083,1.17972205,2543.0,2542.4,1.27793997]
[1748278703310,1.179941,2542.5,2542.4,2.36226192]
[1748278703724,1.179941,2542.5,2542.4,0.46903997]
[1748278703891,1.953841,2542.5,2542.4,0.46903997]
[1748278704713,1.18003382,2542.3,2542.2,0.62527949]
[1748278705139,1.18008024,2542.2,2542.1,0.1]
[1748278706979,1.98248024,2542.2,2542.1,0.1]
[1748278711406,1.18008024,2542.2,2542.1,0.1]
[1748278711737,1.17999998,2542.4,2542.1,0.1]
[1748278711904,1.18008024,2542.2,2542.1,0.1]
[1748278713438,10.09221922,2542.2,2542.1,0.1]
[1748278713939,5.91968024,2542.2,2542.1,0.1]
[1748278714529,1.98868024,2542.2,2542.1,0.1]
[1748278714697,5.91968024,2542.2,2542.1,0.1]
[1748278717039,1.98868024,2542.2,2542.1,0.1]
[1748278720977,1.18008024,2542.2,2542.1,0.1]
[1748278721181,1.18008024,2542.2,2542.1,0.9304]
[1748278721474,1.18008024,2542.2,2542.1,0.1]